bitfinex-derivatives/quotes_ETHF0:USTF0_20260102
["timestamp","ask_amount","ask_price","bid_price","bid_amount"]
[1767347389540,0.30382362,3054.9,3053.0,8.103]
[1767347389726,0.30382362,3054.9,3053.0,4.27453161]
[1767347389933,0.27545606,3054.8,3053.0,4.27453161]
[1767347390132,0.30382362,3054.9,3053.0,4.27453161]
[1767347390133,0.00491787,3054.2,3053.0,4.27453161]
[1767347390341,0.27545606,3054.1,3052.8,4.34412348]
[1767347390543,0.00491787,3054.2,3052.4,4.823]
[1767347390839,0.30382362,3054.9,3053.0,0.16398]
[1767347391030,0.30382362,3054.9,3053.4,0.16395]
[1767347391334,0.30382362,3054.9,3053.5,12.32004533]
[1767347391535,0.30382362,3054.9,3053.5,4.21704533]
[1767347391741,0.00491787,3054.5,3053.9,0.00491787]
[1767347392139,0.00491787,3054.5,3053.6,4.1657116]
[1767347392338,0.28037393,3054.5,3052.5,4.823]
[1767347392633,0.28037393,3054.5,3052.4,4.1657116]
[1767347392841,0.27545606,3054.2,3052.3,0.00355842]
[1767347393040,0.27545606,3054.2,3052.9,0.00491787]
[1767347393236,0.16881787,3054.5,3052.9,0.00491787]
[1767347393543,0.16881787,3054.5,3053.0,4.24618638]
[1767347393544,0.27545606,3054.4,3053.0,4.24618638]
[1767347393748,0.27545606,3054.2,3052.9,0.00491787]
[1767347393936,0.27545606,3053.8,3052.3,0.00355842]
[1767347394239,0.27545606,3054.3,3052.3,0.00355842]
[1767347394432,0.27545606,3054.1,3052.3,0.00355842]
[1767347394631,0.27545606,3053.8,3052.4,4.24328877]
[1767347394944,3.279,3054.4,3050.5,3.279]
[1767347394945,0.164,3052.5,3050.5,3.279]
[1767347395129,6.00491787,3054.5,3050.1,0.26008166]
[1767347395130,0.27545606,3052.1,3050.1,0.26008166]
[1767347395330,0.27545606,3051.8,3050.5,4.21941276]
[1767347395534,3.279,3052.3,3050.2,4.21941276]
[1767347395535,0.27545606,3051.4,3050.2,4.21941276]
[1767347395736,0.27545606,3051.1,3048.9,3.279]
[1767347396046,0.27545606,3051.1,3049.7,0.00491787]
[1767347396047,0.00491787,3050.3,3049.7,0.00491787]
[1767347396343,0.00491787,3050.3,3048.9,0.00349432]
[1767347396344,0.27896873,3050.3,3048.9,0.00349432]
[1767347396839,0.27896873,3050.3,3049.0,4.32273534]
[1767347397033,0.27896873,3050.3,3048.9,0.00349432]
[1767347397034,0.00491787,3050.3,3048.9,0.00349432]
[1767347397229,0.00379677,3051.1,3049.1,4.48567229]
[1767347397429,0.00379677,3051.1,3049.3,0.14199014]
[1767347397834,0.27405086,3052.1,3049.5,0.14151129]
[1767347398034,0.27405086,3052.1,3049.5,0.30567129]
[1767347398240,0.27405086,3052.7,3050.5,0.00491787]
[1767347398641,0.27405086,3052.7,3050.6,4.19441297]
[1767347398939,0.00369783,3052.7,3050.8,0.13724594]
[1767347399136,0.00369783,3052.7,3051.0,0.16408]
[1767347399436,0.00369783,3052.7,3050.8,0.13724594]
[1767347399437,0.27405086,3054.1,3051.4,0.16406]
[1767347399642,0.27405086,3054.1,3051.2,0.12863024]
[1767347399836,0.27405086,3054.1,3052.1,0.16402]
[1767347400144,0.27405086,3054.1,3052.2,4.26332169]
[1767347400439,0.27896873,3053.5,3052.2,4.26721847]
[1767347400739,0.27896873,3053.5,3050.9,4.737]
[1767347401038,0.27896873,3053.5,3051.3,0.16407]
[1767347401237,0.00491787,3053.5,3051.9,0.16403]
[1767347401445,0.00491787,3053.5,3052.4,0.00491787]
[1767347401638,0.27896873,3053.5,3052.4,0.00912944]
[1767347401833,0.27405086,3053.3,3052.5,4.33479024]
[1767347402038,0.43801086,3053.3,3052.4,0.00912944]
[1767347402242,0.27405086,3052.9,3050.3,0.16412]
[1767347402436,0.27405086,3052.7,3050.3,0.16412]
[1767347402642,3.279,3053.6,3050.5,4.35080277]
[1767347402643,0.27405086,3052.5,3050.5,4.35080277]
[1767347402838,0.91670535,3052.4,3050.4,4.35080277]
[1767347403036,0.27405086,3052.3,3050.3,3.279]
[1767347403337,0.27405086,3053.0,3051.0,0.00491787]
[1767347403741,0.27405086,3053.0,3051.1,4.36297868]
[1767347403942,0.27405086,3053.0,3051.1,4.19889868]
[1767347404148,2.86676669,3054.3,3051.7,0.16405]
[1767347404341,3.44289,3054.7,3052.7,0.00491787]
[1767347404539,0.1639,3054.4,3052.7,0.00491787]
[1767347404842,0.16394,3053.8,3052.7,0.00491787]
[1767347405041,0.16394,3053.8,3051.2,3.44307]
[1767347405042,0.91734266,3053.7,3051.2,3.44307]
[1767347405243,0.16395,3053.5,3051.2,3.28233645]
[1767347405446,0.00353527,3053.7,3051.5,4.29790068]
[1767347405447,0.91734266,3053.4,3051.5,4.29790068]
[1767347405742,0.91734266,3053.3,3051.2,0.00333645]
[1767347405941,3.28253527,3053.7,3051.6,4.2983191]
[1767347406133,0.00491787,3052.6,3051.9,0.00491787]
[1767347406945,0.27896873,3052.6,3051.9,0.00491787]
[1767347407442,6.27896873,3052.6,3051.2,0.00333645]
[1767347407645,0.27405086,3052.2,3051.2,0.00333645]
[1767347407838,0.43807086,3052.2,3051.2,0.00333645]
[1767347408045,0.27405086,3052.0,3049.7,0.16415]
[1767347408239,1.19306711,3051.9,3049.8,1.56736423]
[1767347408435,1.19306711,3051.9,3050.5,0.00491787]
[1767347408436,0.27405086,3051.9,3050.5,0.00491787]
[1767347408942,0.27405086,3051.5,3050.5,0.00885211]
[1767347409144,0.43813086,3051.1,3048.9,8.097]
[1767347409342,0.43813086,3051.1,3048.9,3.279]
[1767347409343,0.27405086,3050.9,3048.9,3.279]
[1767347409541,0.27405086,3050.9,3049.1,4.30952604]
[1767347409746,0.27405086,3050.5,3048.1,0.27784916]
[1767347410050,0.27405086,3050.5,3049.2,4.25209549]
[1767347410246,21.85383422,3052.3,3049.1,4.25209549]
[1767347410247,0.27405086,3051.1,3049.1,4.25209549]
[1767347410549,0.27405086,3051.1,3049.0,0.00491787]
[1767347410550,0.27405086,3051.1,3049.3,4.25209549]
[1767347410949,0.27405086,3050.9,3049.1,4.1710269]
[1767347411147,0.27405086,3050.9,3049.4,4.1710269]
[1767347411148,0.00491787,3050.3,3049.4,4.1710269]
[1767347411444,0.27732756,3051.5,3049.5,0.16416]
[1767347411650,0.27405086,3051.3,3049.5,4.1710269]
[1767347411947,0.0032767,3051.5,3049.4,0.16417]
[1767347412149,0.9186883,3051.4,3049.1,4.35932845]
[1767347412340,0.00491787,3050.6,3049.5,4.35932845]
[1767347412542,0.00491787,3050.6,3049.1,4.35932845]
[1767347412741,0.00491787,3050.6,3049.0,0.00491787]
[1767347412946,0.00491787,3050.6,3049.1,4.24213534]
[1767347413556,0.27896873,3050.6,3049.0,0.00491787]
[1767347413749,0.16412,3050.4,3049.0,0.00491787]
[1767347414046,0.27405086,3049.8,3048.1,0.00407694]
[1767347414444,0.27405086,3050.3,3048.2,4.22542158]
[1767347414646,0.27405086,3050.1,3048.2,4.22542158]
[1767347415044,0.27405086,3050.1,3048.8,0.00491787]
[1767347415245,0.27405086,3049.5,3048.1,0.00407694]
[1767347415848,1.835,3050.0,3048.1,0.00407694]
[1767347415849,0.27405086,3049.9,3048.1,0.00407694]
[1767347416047,0.16416,3049.6,3048.1,0.00407694]
[1767347416247,0.27405086,3049.5,3048.1,0.00407694]
[1767347416948,3.55405086,3050.1,3048.2,4.20994552]
[1767347417161,0.27405086,3050.7,3048.2,4.20994552]
[1767347417451,0.27896873,3050.6,3048.2,4.20994552]
[1767347417654,0.27896873,3050.6,3048.5,0.16421]
[1767347418047,0.27405086,3050.4,3048.6,4.26714305]
[1767347418351,0.27405086,3049.9,3048.1,0.00407694]
[1767347418547,0.27405086,3049.6,3048.1,0.00407694]
[1767347418945,0.27405086,3049.2,3046.7,0.67164412]
[1767347419150,0.00491787,3048.3,3047.1,0.16429]
[1767347419347,0.27405086,3049.1,3047.4,4.29486393]
[1767347419649,0.27405086,3049.6,3047.5,0.16427]
[1767347419849,0.27405086,3049.6,3047.5,4.45913393]
[1767347420053,0.27795485,3049.6,3047.5,0.16826857]
[1767347420252,0.00390399,3049.6,3047.9,0.16425]
[1767347420457,0.00390399,3049.6,3048.4,0.00491787]
[1767347420657,0.00390399,3049.6,3048.5,0.16422]
[1767347420852,0.27405086,3050.2,3048.6,0.16421]
[1767347421062,0.43815086,3050.7,3048.6,0.16421]
[1767347421352,0.43815086,3050.7,3048.5,4.20522553]
[1767347421353,0.27405086,3050.6,3048.7,4.3349918]
[1767347421556,0.00491787,3050.0,3048.7,4.3349918]
[1767347421758,0.00491787,3050.0,3048.7,0.16421]
[1767347421950,0.00762729,3050.0,3049.1,0.16418]
[1767347422150,0.27405086,3051.3,3049.1,0.16418]
[1767347422352,0.27405086,3051.1,3049.2,4.24588126]
[1767347422548,0.27405086,3051.1,3049.1,0.16418]
[1767347422756,0.27405086,3051.1,3049.2,4.24588126]
[1767347423268,0.27405086,3051.1,3049.1,0.16418]
[1767347423269,0.27405086,3050.4,3048.4,0.16422]
[1767347423759,0.27405086,3050.4,3048.5,4.22571908]
[1767347424058,0.27405086,3050.1,3048.5,4.22571908]
[1767347424356,0.27405086,3050.1,3049.0,0.00491787]
[1767347424958,0.27405086,3049.9,3047.6,0.16426]
[1767347425459,0.27405086,3049.9,3047.8,4.28290468]
[1767347425665,0.26595866,3050.3,3048.3,0.16423]
[1767347426058,0.26595866,3050.3,3049.0,0.00491787]
[1767347426265,0.26595866,3050.3,3047.9,1.53305749]
[1767347426266,0.26595866,3050.3,3047.6,0.16426]
[1767347426467,0.28697092,3049.8,3047.6,0.16426]
[1767347426654,0.29188879,3050.5,3048.0,4.25364371]
[1767347426859,0.29188879,3050.5,3048.7,0.16421]
[1767347427167,0.29188879,3050.5,3048.8,4.25294193]
[1767347427864,0.45599879,3050.5,3048.8,4.25294193]
[1767347428059,0.45599879,3050.5,3048.4,0.16422]
[1767347428258,0.28697092,3050.4,3047.8,0.16425]
[1767347428566,0.28697092,3050.2,3047.9,4.17402636]
[1767347428760,0.28697092,3050.2,3047.9,4.33827636]
[1767347428955,0.28697092,3050.2,3048.2,0.16424]
[1767347429165,0.28697092,3050.2,3047.9,4.17402636]
[1767347429166,0.00491787,3050.5,3048.5,0.16422]
[1767347429363,0.00491787,3050.5,3048.6,0.16421]
[1767347429565,0.29188879,3050.5,3048.6,4.51113589]
[1767347429765,0.29188879,3050.5,3048.6,0.16421]
[1767347429962,0.29188879,3050.5,3048.7,4.29574244]
[1767347430157,0.29188879,3050.5,3048.6,0.16421]
[1767347430559,0.28697092,3050.4,3048.0,0.16424]
[1767347430765,0.28697092,3050.3,3048.2,0.16423]
[1767347431164,0.28697092,3050.2,3048.3,4.26410569]
[1767347432267,0.28697092,3049.7,3048.3,4.26410569]
[1767347432564,0.45113092,3049.7,3047.7,0.16426]
[1767347432866,0.45113092,3049.7,3047.7,4.51168902]
[1767347432867,0.00491787,3049.0,3047.7,4.51168902]
[1767347433066,0.00491787,3049.0,3047.7,4.34742902]
[1767347435775,0.00491787,3049.6,3049.0,0.00491787]
[1767347438079,0.00491787,3049.6,3047.5,8.10099857]
[1767347438080,0.28697092,3049.2,3047.5,3.28499857]
[1767347438373,0.28697092,3049.2,3047.6,4.34785938]
[1767347438776,0.28697092,3049.2,3047.5,0.00399857]
[1767347439577,0.00491787,3049.6,3047.7,0.16426]
[1767347439874,0.16417,3049.5,3047.6,4.17489221]
[1767347440080,0.28697092,3049.4,3047.6,4.17489221]
[1767347440666,0.28697092,3049.3,3047.6,4.17489221]
[1767347440874,0.28697092,3049.3,3047.5,0.00399857]
[1767347441378,0.00491787,3049.6,3046.7,0.55810496]
[1767347441379,0.28697092,3048.4,3046.7,0.55810496]
[1767347441576,0.00491787,3047.9,3046.7,0.55810496]
[1767347441880,0.28697092,3048.9,3046.9,4.2542691]
[1767347442075,0.16422,3048.5,3046.7,0.39379496]
[1767347442273,0.00319241,3048.5,3046.7,0.39688068]
[1767347442472,0.29016333,3048.5,3046.9,4.20133516]
[1767347442772,0.29016333,3048.5,3046.7,0.39688068]
[1767347442773,0.00491787,3048.0,3047.4,0.00491787]
[1767347443079,0.00319241,3048.5,3047.4,0.00491787]
[1767347443279,0.45121092,3048.2,3047.4,0.00491787]
[1767347443477,0.28697092,3048.1,3046.7,0.39688068]
[1767347443780,6.00319241,3048.5,3046.7,0.00308572]
[1767347443781,0.28697092,3048.0,3046.7,0.00308572]
[1767347444575,0.00491787,3047.7,3047.0,0.00491787]
[1767347444872,0.28697092,3047.5,3045.4,0.16438]
[1767347445070,0.28697092,3047.2,3044.8,0.16442]
[1767347445477,7.671,3047.4,3044.3,0.25835268]
[1767347445478,0.28697092,3046.5,3045.1,4.1910745]
[1767347445672,0.28697092,3046.5,3044.3,0.16445]
[1767347445879,0.00491787,3046.1,3044.6,0.00307578]
[1767347446077,0.00758278,3046.1,3044.6,0.00307578]
[1767347446279,0.00758278,3046.1,3044.7,4.21207611]
[1767347446479,0.00758278,3046.1,3044.7,4.37649611]
[1767347446875,0.00758278,3046.1,3045.2,0.00307578]
[1767347448178,0.28697092,3047.1,3045.4,0.00307578]
[1767347448375,3.283,3047.8,3044.3,0.00297376]
[1767347448376,0.28697092,3046.8,3044.5,0.16443]
[1767347448584,0.28697092,3046.7,3044.5,0.16443]
[1767347448782,0.28697092,3046.7,3044.7,0.00307578]
[1767347448978,0.00491787,3046.0,3045.4,0.00491787]
[1767347449873,0.00299178,3046.7,3045.4,0.00491787]
[1767347450084,0.00299178,3046.7,3046.1,0.00307578]
[1767347450474,0.00299178,3046.7,3046.4,0.00307578]
[1767347450680,0.00299178,3046.7,3045.5,4.22134355]
[1767347450987,0.00491787,3046.4,3045.5,4.22134355]
[1767347451191,0.00491787,3046.4,3045.4,0.00491787]
[1767347451483,0.28697092,3047.9,3045.7,0.16437]
[1767347451674,3.283,3048.5,3045.7,0.16437]
[1767347451675,0.28697092,3047.7,3045.7,0.16437]
[1767347451870,0.28697092,3047.5,3045.8,4.2148422]
[1767347452076,0.28697092,3047.5,3045.4,0.00491787]
[1767347452284,0.45124092,3047.5,3045.5,4.19947045]
[1767347452587,0.29188879,3046.8,3045.4,0.00491787]
[1767347454981,0.00491787,3046.8,3045.5,4.49702704]
[1767347455486,0.00491787,3046.8,3045.6,0.16437]
[1767347455893,0.00491787,3046.8,3045.7,4.33264704]
[1767347456181,0.00491787,3046.8,3045.4,0.00491787]
[1767347456381,0.00491787,3046.8,3045.6,4.30903751]
[1767347456579,0.00491787,3046.8,3045.4,0.00491787]
[1767347456782,0.2650512,3046.8,3045.4,0.00491787]
[1767347460482,0.00491787,3046.8,3045.5,4.26034007]
[1767347461483,0.00411432,3047.5,3045.8,0.16436]
[1767347461786,0.00411432,3047.5,3046.0,0.16435]
[1767347461987,0.00411432,3047.5,3045.9,4.3577082]
[1767347462180,0.00411432,3047.5,3046.5,0.16432]
[1767347462380,0.26013333,3048.0,3046.5,0.16432]
[1767347462594,0.00491787,3047.6,3046.9,0.00491787]
[1767347462784,0.26013333,3048.6,3046.9,0.16921787]
[1767347463086,0.26013333,3048.6,3047.0,4.27521743]
[1767347463390,0.26013333,3048.6,3047.0,4.27896867]
[1767347463391,0.26259565,3048.6,3047.0,4.27896867]
[1767347463785,0.42681565,3048.6,3047.0,0.00375124]
[1767347464087,0.2650512,3048.1,3047.0,0.00375124]
[1767347466290,0.2650512,3048.1,3045.9,0.16436]
[1767347466484,0.26013333,3048.0,3046.3,0.16433]
[1767347466689,0.00491787,3048.1,3046.1,0.27213982]
[1767347466888,0.00491787,3048.1,3046.6,0.16432]
[1767347467188,0.00491787,3048.1,3046.7,4.52803237]
[1767347467392,0.00491787,3048.1,3047.1,0.00491787]
[1767347468686,0.26259565,3048.6,3047.2,4.27909476]
[1767347468891,0.00246232,3048.6,3047.2,4.27909476]
[1767347469594,0.00246232,3048.6,3047.2,4.44338476]
[1767347469794,0.00491787,3048.2,3047.2,4.44338476]
[1767347470494,0.00246232,3048.6,3047.2,4.44338476]
[1767347470690,0.00246232,3048.6,3047.3,0.16428]
[1767347471095,0.00246232,3048.6,3047.4,4.24475944]
[1767347471290,0.00327317,3048.3,3047.4,4.24475944]
[1767347471493,0.00246232,3048.6,3047.4,4.40903944]
[1767347471788,0.00246232,3048.6,3047.4,0.16428]
[1767347472197,0.26013333,3049.2,3047.5,4.47641937]
[1767347472393,0.25930022,3051.0,3047.5,4.47641937]
[1767347472394,0.26013333,3050.3,3048.2,0.16423]
[1767347472587,0.26013333,3050.3,3048.9,0.00491787]
[1767347473292,0.26013333,3050.1,3048.9,0.00888662]
[1767347473589,0.26013333,3049.8,3048.9,0.00888662]
[1767347474198,0.26013333,3049.8,3047.9,0.16425]
[1767347474199,0.26013333,3049.7,3047.9,0.16425]
[1767347474590,0.26013333,3049.7,3048.0,4.27693655]
[1767347474987,0.26013333,3049.4,3047.3,0.16428]
[1767347475192,0.26013333,3049.1,3047.9,0.00409382]
[1767347476090,0.26013333,3049.1,3048.2,0.00491787]
[1767347476287,0.26013333,3049.1,3047.9,0.00409382]
[1767347477191,0.26013333,3048.8,3046.5,0.27213982]
[1767347477495,0.26013333,3048.8,3047.3,0.00491787]
[1767347477695,0.00491787,3049.2,3047.3,0.16919787]
[1767347478002,0.00491787,3049.2,3047.4,4.44072674]
[1767347478188,0.00491787,3049.2,3047.5,0.27213982]
[1767347478386,0.00491787,3049.2,3048.0,0.16424]
[1767347478603,0.00491787,3049.2,3048.1,0.16424]
[1767347478794,0.00491787,3049.2,3048.1,4.49038596]
[1767347478997,0.00491787,3049.2,3047.5,4.49041596]
[1767347479196,0.00491787,3049.2,3048.2,4.19058652]
[1767347479397,0.00491787,3049.2,3047.8,4.35484652]
[1767347479698,0.00491787,3049.2,3047.8,0.16426]
[1767347479894,0.00491787,3049.2,3047.9,4.19058652]
[1767347480405,0.00491787,3049.2,3047.4,0.00339606]
[1767347480406,0.2650512,3049.2,3047.4,0.00339606]
[1767347480596,0.4292412,3049.2,3047.4,0.00339606]
[1767347480801,0.42433333,3048.9,3047.4,0.00339606]
[1767347480999,0.26013333,3048.8,3047.4,0.00339606]
[1767347481799,0.26013333,3048.5,3047.4,0.00339606]
[1767347482606,0.00491787,3049.2,3047.4,0.00339606]
[1767347482607,0.26013333,3049.0,3047.4,0.00339606]
[1767347483202,0.26013333,3049.0,3047.5,4.19044066]
[1767347485008,0.26013333,3048.9,3047.5,4.19044066]
[1767347485203,0.26013333,3048.9,3047.4,0.00339606]
[1767347486209,0.00491787,3049.2,3047.5,4.31014297]
[1767347486806,0.00491787,3049.2,3047.5,4.47441297]
[1767347487010,0.00491787,3049.2,3047.6,0.16426]
[1767347487410,0.00491787,3049.2,3047.7,4.35870965]
[1767347488114,0.28079414,3049.2,3047.7,4.35870965]
[1767347489006,0.27587627,3049.1,3047.4,0.00339606]
[1767347489202,0.44006627,3049.1,3047.4,0.00339606]
[1767347489414,0.27587627,3048.8,3047.4,0.00339606]
[1767347490916,0.1642,3048.9,3047.4,0.00339606]
[1767347491315,0.00491787,3049.2,3047.7,0.16426]
[1767347491820,0.00491787,3049.2,3047.8,4.33619781]
[1767347492014,0.28079414,3049.2,3047.8,4.33619781]
[1767347492412,0.28079414,3049.2,3047.4,0.00339606]
[1767347492720,0.28079414,3049.2,3047.5,4.25082516]
[1767347492916,0.28079414,3049.2,3047.5,4.41509516]
[1767347493125,0.28079414,3049.2,3047.7,0.16426]
[1767347493614,0.28079414,3049.2,3047.8,4.25909297]
[1767347494424,0.28079414,3049.2,3047.7,0.16426]
[1767347495122,0.28079414,3049.2,3047.4,0.00339606]
[1767347495521,0.28079414,3049.2,3047.5,4.35568614]
[1767347495720,0.28079414,3049.2,3047.6,0.16427]
[1767347496021,0.28079414,3049.2,3047.7,4.35567614]
[1767347496323,0.00491787,3049.2,3047.8,0.16426]
[1767347496709,0.00491787,3049.2,3047.8,4.37315438]
[1767347496916,0.28079414,3049.2,3047.8,0.16426]
[1767347497119,0.28079414,3049.2,3047.9,4.32075331]
[1767347497623,0.28079414,3049.2,3047.4,0.00339606]
[1767347497824,0.27587627,3048.7,3047.4,0.00339606]
[1767347500612,0.44009627,3048.5,3047.4,0.00339606]
[1767347500926,0.27587627,3048.4,3047.4,0.00339606]
[1767347501319,0.27587627,3049.1,3047.4,0.00339606]
[1767347501520,0.44006627,3049.1,3047.5,4.30689894]
[1767347501726,0.27587627,3049.0,3047.5,4.30689894]
[1767347501924,0.27587627,3048.7,3047.4,0.00339606]
[1767347502232,0.27587627,3048.3,3047.3,0.00491787]
[1767347502529,0.27587627,3048.3,3046.5,0.16433]
[1767347502726,0.27587627,3048.3,3046.6,0.00491787]
[1767347503028,0.27587627,3048.3,3046.8,0.00491787]
[1767347503325,0.27587627,3048.3,3047.2,0.00491787]
[1767347503529,0.44010627,3048.3,3047.2,0.00491787]
[1767347503918,0.27587627,3048.2,3047.2,0.00491787]
[1767347504425,0.27587627,3048.2,3047.2,0.00983574]
[1767347506625,0.27587627,3048.2,3047.4,0.00491787]
[1767347506831,0.27587627,3048.2,3046.8,0.00308123]
[1767347507029,0.44011627,3048.2,3046.8,0.00308123]
[1767347507326,0.27587627,3048.0,3046.8,0.00308123]
[1767347507522,0.27965221,3048.0,3046.8,0.00308123]
[1767347507924,0.27965221,3048.0,3047.1,0.00491787]
[1767347509230,0.27965221,3048.0,3046.3,0.16434]
[1767347509631,0.00377594,3048.0,3046.4,4.50516299]
[1767347510030,0.00377594,3048.0,3046.4,0.16433]
[1767347510329,0.00491787,3047.5,3046.9,0.0032786]
[1767347511820,0.00377594,3048.0,3046.9,0.0032786]
[1767347512724,0.00491787,3047.8,3046.9,0.0032786]
[1767347514122,0.00491787,3047.8,3047.0,4.207598]
[1767347514918,0.27587627,3048.7,3047.0,4.371898]
[1767347515320,0.00377594,3048.0,3046.9,0.0032786]
[1767347515526,0.27587627,3048.1,3046.9,0.0032786]
[1767347515923,0.00377594,3047.2,3046.9,0.0032786]
[1767347516128,0.26264235,3047.8,3045.8,0.42906403]
[1767347516129,0.25772448,3047.7,3045.8,0.16436]
[1767347516329,0.25772448,3047.5,3045.5,3.283]
[1767347516528,0.16428,3047.3,3045.9,3.79009242]
[1767347517233,0.16428,3047.3,3046.3,0.00491787]
[1767347518532,0.00491787,3047.8,3046.4,3.79009242]
[1767347518725,0.16917787,3047.8,3046.3,0.00491787]
[1767347518929,0.42198448,3047.7,3046.3,0.00491787]
[1767347519130,0.25772448,3047.6,3046.3,0.00491787]
[1767347519434,0.00491787,3047.8,3046.3,0.00491787]
[1767347519435,0.42199448,3047.5,3046.3,0.00491787]
[1767347520421,0.00491787,3047.8,3046.3,0.00491787]
[1767347520622,0.00491787,3047.8,3046.6,3.79009242]
[1767347521027,0.00491787,3047.8,3046.9,3.79009242]
[1767347521528,0.00491787,3047.8,3046.7,0.27038789]
[1767347521726,0.00491787,3047.8,3047.4,3.79009242]
[1767347521928,0.00491787,3047.8,3047.2,3.07909934]
[1767347522232,0.00491787,3047.8,3046.8,3.07909934]
[1767347522630,0.00491787,3047.8,3047.0,3.07909934]
[1767347522827,0.16426,3047.7,3046.5,3.34948723]
[1767347523022,0.16426,3047.7,3046.5,0.27038789]
[1767347523228,0.00491787,3047.8,3046.8,0.27038789]
[1767347523835,0.00491787,3047.8,3047.3,3.07909934]
[1767347524027,0.00311296,3048.1,3047.3,3.07909934]
[1767347524724,0.1642,3048.8,3047.7,0.27038789]
[1767347524931,0.00491787,3048.6,3047.9,0.00491787]
[1767347525528,0.00491787,3048.6,3047.9,3.08401721]
[1767347525931,0.00723892,3048.6,3047.9,3.08401721]
[1767347526633,6.00723892,3048.6,3046.4,0.27038789]
[1767347526837,0.00723892,3048.6,3046.9,3.07909934]
[1767347527628,0.00723892,3048.6,3047.4,0.00491787]
[1767347527629,0.16425,3048.0,3047.4,0.00491787]
[1767347527824,4.386,3048.5,3047.4,0.00491787]
[1767347528029,4.386,3048.5,3047.4,0.00276361]
[1767347528326,0.16423,3048.3,3047.4,0.00276361]
[1767347528526,0.16425,3048.0,3047.0,0.27038789]
[1767347528726,0.16425,3047.9,3046.5,0.27038789]
[1767347528926,0.16426,3047.8,3046.5,0.27038789]
[1767347529526,0.16426,3047.7,3046.8,0.00491787]
[1767347529926,0.16426,3047.7,3047.0,3.07909934]
[1767347530737,0.16426,3047.7,3047.1,3.07909934]
[1767347530937,4.386,3048.5,3046.8,0.00491787]
[1767347530938,4.386,3048.5,3047.0,2.91381989]
[1767347531134,0.16427,3047.6,3046.8,0.00491787]
[1767347531334,0.16428,3047.5,3045.9,0.00306822]
[1767347531530,1.15201994,3048.3,3045.9,0.00306822]
[1767347531735,0.16428,3047.4,3046.3,2.91873776]
[1767347532331,0.00491787,3047.2,3046.6,2.91873776]
[1767347532541,0.1643,3047.0,3045.9,0.00306822]
[1767347532839,0.16431,3046.8,3045.9,2.20112619]
[1767347533037,0.16432,3046.7,3045.9,0.00306822]
[1767347533542,0.16433,3046.4,3045.9,0.00072107]
[1767347533732,4.387,3046.5,3045.3,0.27038789]
[1767347534042,0.16436,3045.9,3044.8,0.27038789]
[1767347534245,0.00491787,3045.7,3044.8,0.27038789]
[1767347534630,0.16438,3045.6,3044.8,0.00277363]
[1767347534934,0.16438,3045.6,3044.8,2.19805797]
[1767347535238,0.16441,3045.1,3043.4,0.27038789]
[1767347535736,4.388,3045.1,3043.6,0.27038789]
[1767347536133,0.17250819,3045.7,3043.6,0.27038789]
[1767347536329,0.17250819,3045.7,3043.7,0.27038789]
[1767347536534,0.00813819,3045.7,3044.2,0.27038789]
[1767347536832,0.00813819,3045.7,3044.4,0.27038789]
[1767347541436,0.00813819,3045.7,3043.4,0.00325067]
[1767347541437,0.17250819,3045.7,3043.7,0.27038789]
[1767347541633,4.388,3045.6,3043.7,0.27038789]
[1767347541833,4.388,3045.6,3043.9,0.27038789]
[1767347542030,0.17250819,3045.7,3043.9,0.27038789]
[1767347542844,0.00813819,3045.7,3044.1,0.27038789]
[1767347543137,0.00813819,3045.7,3044.3,0.27038789]
[1767347543549,0.00813819,3045.7,3044.2,4.3307314]
[1767347543550,0.00813819,3045.7,3044.5,0.27038789]
[1767347544944,3.285,3046.7,3044.9,0.27038789]
[1767347545244,0.16434,3046.3,3044.9,0.27038789]
[1767347546047,0.00492708,3045.9,3045.3,0.00492708]
[1767347546646,0.00492708,3045.9,3043.8,0.27085121]
[1767347547035,0.00492708,3045.9,3044.2,0.27085121]
[1767347547236,0.16439,3045.3,3044.2,0.27085121]
[1767347547441,0.1644,3045.2,3043.5,0.27085121]
[1767347549056,0.16437,3045.8,3043.5,0.27085121]
[1767347549260,4.389,3045.7,3043.7,0.27085121]
[1767347549560,0.16439,3045.4,3043.7,0.27085121]
[1767347549765,0.1644,3045.2,3043.7,0.27085121]
[1767347550059,0.16441,3045.0,3043.7,0.27085121]
[1767347550855,3.45038,3045.6,3043.7,0.27085121]
[1767347551064,7.83938,3045.6,3043.7,0.27085121]
[1767347551353,0.16438,3045.6,3043.9,1.42287115]
[1767347551559,0.00492708,3045.9,3044.0,0.27085121]
[1767347551855,4.39392708,3045.9,3044.1,0.27085121]
[1767347553664,0.16437,3045.7,3044.1,0.27085121]
[1767347553864,0.16438,3045.5,3044.1,0.27085121]
[1767347555762,0.16439,3045.4,3044.1,0.27085121]
[1767347555963,0.16439,3045.3,3044.1,0.27085121]
[1767347557363,4.39,3045.2,3044.1,0.27085121]
[1767347558261,0.00492708,3045.9,3044.1,0.27085121]
[1767347558262,0.16437,3045.8,3044.1,0.27085121]
[1767347558867,4.55437,3045.8,3044.1,0.27085121]
[1767347559464,0.16437,3045.8,3044.1,1.42287115]
[1767347559663,0.00492708,3045.9,3044.2,0.43530121]
[1767347559858,0.00492708,3045.9,3044.3,0.27085121]
[1767347560164,0.00492708,3045.9,3044.7,0.27085121]
[1767347572167,0.00306376,3046.3,3044.9,1.42287115]
[1767347572371,0.00306376,3046.3,3045.0,0.27085121]
[1767347572575,0.00306376,3046.3,3045.1,0.27085121]
[1767347573171,0.00306376,3046.3,3045.5,0.27085121]
[1767347574275,0.00492708,3046.2,3045.5,0.27085121]
[1767347574483,4.388,3047.2,3045.5,0.27085121]
[1767347574979,3.45028,3047.4,3045.7,0.27085121]
[1767347574980,0.16428,3047.4,3045.7,0.27085121]
[1767347575572,0.00492708,3046.9,3045.7,0.27085121]
[1767347575785,0.00767127,3046.9,3045.7,0.27374]
[1767347580989,0.16425,3047.9,3046.0,0.27341927]
[1767347581280,0.16425,3047.9,3046.1,0.27341927]
[1767347581481,0.16427,3047.6,3046.1,0.27341927]
[1767347581874,0.16427,3047.5,3046.1,0.27341927]
[1767347582073,0.00492708,3047.1,3046.1,0.27341927]
[1767347586080,0.00239158,3047.5,3046.1,0.27341927]
[1767347586283,0.06414474,3049.2,3046.3,0.27341927]
[1767347586284,0.877,3048.4,3046.3,0.27341927]
[1767347586484,0.877,3048.4,3046.2,4.28452652]
[1767347586485,0.16423,3048.4,3046.5,0.27341927]
[1767347587286,0.00492708,3047.8,3047.1,0.00492708]
[1767347587485,0.00492708,3047.8,3047.1,0.27834635]
[1767347587891,0.00492708,3047.8,3047.1,0.00492708]
[1767347593798,0.00492708,3047.8,3047.1,0.27834635]
[1767347597709,0.16424,3048.2,3047.1,0.27834635]
[1767347598709,0.00326324,3048.0,3047.1,0.27834635]
[1767347608099,0.00322248,3048.4,3047.1,0.27834635]